[Event "Titled Tuesday Blitz February 28 Late 2023"]
[White "Cheng, Xiao"]
[Black "Einarsson, Halldor Gretar"]
[WhiteFideId "2022915"]
[BlackFideId "2300150"]
[WhiteElo "2470"]
[BlackElo "2126"]
[Result "1-0"]
[Round "06"]
[TimeControl "180+2"]
[Date "2023.02.28"]
[WhiteClock "0:01:31"]
[BlackClock "0:00:04"]

1. e4 {[%clk 0:02:51]}  c5 {[%clk 0:02:59]} 2. Nf3 {[%clk 0:02:51]}  Nc6 {[%clk 0:02:59]} 3. d4 {[%clk 0:02:52]}  cxd4 {[%clk 0:02:59]} 4. Nxd4 {[%clk 0:02:53]}  Nf6 {[%clk 0:02:59]} 5. Nc3 {[%clk 0:02:53]}  e5 {[%clk 0:02:59]} 6. Ndb5 {[%clk 0:02:53]}  d6 {[%clk 0:03:00]} 7. Bg5 {[%clk 0:02:53]}  a6 {[%clk 0:03:00]} 8. Na3 {[%clk 0:02:54]}  b5 {[%clk 0:03:00]} 9. Bxf6 {[%clk 0:02:54]}  gxf6 {[%clk 0:03:00]} 10. Nd5 {[%clk 0:02:55]}  f5 {[%clk 0:02:59]} 11. Bd3 {[%clk 0:02:54]}  Be6 {[%clk 0:02:53]} 12. Qh5 {[%clk 0:02:51]}  Bg7 {[%clk 0:02:34]} 13. c4 {[%clk 0:02:46]}  Bxd5 {[%clk 0:01:40]} 14. exd5 {[%clk 0:02:43]}  Qa5+ {[%clk 0:01:34]} 15. Kf1 {[%clk 0:02:41]}  e4 {[%clk 0:00:43]} 16. Re1 {[%clk 0:02:24]}  Ne5 {[%clk 0:00:38]} 17. Be2 {[%clk 0:02:21]}  f4 {[%clk 0:00:25]} 18. cxb5 {[%clk 0:02:18]}  O-O {[%clk 0:00:19]} 19. Qf5 {[%clk 0:02:13]}  f3 {[%clk 0:00:18]} 20. gxf3 {[%clk 0:02:12]}  exf3 {[%clk 0:00:18]} 21. Bxf3 {[%clk 0:02:11]}  Nxf3 {[%clk 0:00:15]} 22. Qxf3 {[%clk 0:02:10]}  axb5 {[%clk 0:00:15]} 23. Rg1 {[%clk 0:02:05]}  Rae8 {[%clk 0:00:12]} 24. Re3 {[%clk 0:01:51]}  b4 {[%clk 0:00:08]} 25. Nc4 {[%clk 0:01:45]}  Qxa2 {[%clk 0:00:07]} 26. Nxd6 {[%clk 0:01:39]}  Qb1+ {[%clk 0:00:04]} 27. Kg2 {[%clk 0:01:37]}  Qg6+ {[%clk 0:00:04]} 28. Kh1 {[%clk 0:01:37]}  Qxd6 {[%clk 0:00:05]} 29. Rd3 {[%clk 0:01:32]}  Re5 {[%clk 0:00:04]} 30. Rd4 {[%clk 0:01:31]} 1-0


[Site "https://www.chess.com"]

[Event "Titled Tuesday Blitz February 28 Late 2023"]
[White "De Souza, Cristiano Gomes"]
[Black "Vovk, Orest"]
[WhiteFideId "2151758"]
[BlackFideId "14113490"]
[WhiteElo "2068"]
[BlackElo "2215"]
[Result "0-1"]
[Round "06"]
[TimeControl "180+2"]
[Date "2023.02.28"]
[WhiteClock "0:00:17"]
[BlackClock "0:01:27"]

1. d4 {[%clk 0:03:00]}  e5 {[%clk 0:02:57]} 2. dxe5 {[%clk 0:02:59]}  Nc6 {[%clk 0:02:58]} 3. Nf3 {[%clk 0:02:59]}  Qe7 {[%clk 0:02:58]} 4. Bf4 {[%clk 0:02:57]}  Qb4+ {[%clk 0:02:58]} 5. Bd2 {[%clk 0:02:56]}  Qxb2 {[%clk 0:02:59]} 6. Nc3 {[%clk 0:02:54]}  Bb4 {[%clk 0:02:59]} 7. Rb1 {[%clk 0:02:53]}  Qxc3 {[%clk 0:03:00]} 8. Bxc3 {[%clk 0:02:51]}  Bxc3+ {[%clk 0:03:01]} 9. Nd2 {[%clk 0:02:50]}  Nxe5 {[%clk 0:03:01]} 10. e3 {[%clk 0:02:46]}  Nf6 {[%clk 0:03:02]} 11. Bd3 {[%clk 0:02:40]}  d5 {[%clk 0:03:02]} 12. O-O {[%clk 0:02:39]}  O-O {[%clk 0:03:02]} 13. h3 {[%clk 0:02:31]}  c6 {[%clk 0:03:02]} 14. Nf3 {[%clk 0:02:30]}  Nxf3+ {[%clk 0:03:01]} 15. Qxf3 {[%clk 0:02:27]}  b5 {[%clk 0:03:02]} 16. e4 {[%clk 0:02:22]}  dxe4 {[%clk 0:03:01]} 17. Bxe4 {[%clk 0:02:21]}  Nxe4 {[%clk 0:03:02]} 18. Qxe4 {[%clk 0:02:20]}  Be6 {[%clk 0:02:59]} 19. Qxc6 {[%clk 0:02:18]}  b4 {[%clk 0:02:59]} 20. Qa4 {[%clk 0:02:15]}  a5 {[%clk 0:02:54]} 21. Rfd1 {[%clk 0:02:12]}  g6 {[%clk 0:02:49]} 22. Rd3 {[%clk 0:01:57]}  Rfc8 {[%clk 0:02:48]} 23. Rbd1 {[%clk 0:01:56]}  Bg7 {[%clk 0:02:37]} 24. a3 {[%clk 0:01:53]}  bxa3 {[%clk 0:02:15]} 25. Qxa3 {[%clk 0:01:52]}  Bf5 {[%clk 0:02:09]} 26. Rd5 {[%clk 0:01:45]}  Bxc2 {[%clk 0:02:04]} 27. Rc1 {[%clk 0:01:43]}  a4 {[%clk 0:02:02]} 28. Rd2 {[%clk 0:01:29]}  Bb3 {[%clk 0:01:58]} 29. Rxc8+ {[%clk 0:01:26]}  Rxc8 {[%clk 0:01:59]} 30. Qe7 {[%clk 0:01:13]}  Bf8 {[%clk 0:01:51]} 31. Qf6 {[%clk 0:00:53]}  a3 {[%clk 0:01:44]} 32. g4 {[%clk 0:00:39]}  a2 {[%clk 0:01:40]} 33. h4 {[%clk 0:00:21]}  Rc1+ {[%clk 0:01:36]} 34. Kg2 {[%clk 0:00:19]}  a1=Q {[%clk 0:01:28]} 35. Qxa1 {[%clk 0:00:17]}  Rxa1 {[%clk 0:01:27]} 36. Rd8 {[%clk 0:00:17]} 0-1


[Site "https://www.chess.com"]

[Event "Titled Tuesday Blitz February 28 Late 2023"]
[White "Simonovic, Miroslav"]
[Black "Karamsetty, Jeevan"]
[WhiteFideId "919152"]
[BlackFideId "2025337"]
[WhiteElo "2057"]
[BlackElo "2111"]
[Result "0-1"]
[Round "06"]
[TimeControl "180+2"]
[Date "2023.02.28"]
[WhiteClock "0:00:02"]
[BlackClock "0:00:11"]

1. d4 {[%clk 0:03:00]}  Nf6 {[%clk 0:02:59]} 2. Bg5 {[%clk 0:03:00]}  e6 {[%clk 0:02:58]} 3. e4 {[%clk 0:03:00]}  Be7 {[%clk 0:02:55]} 4. Bxf6 {[%clk 0:03:00]}  Bxf6 {[%clk 0:02:51]} 5. e5 {[%clk 0:03:01]}  Be7 {[%clk 0:02:51]} 6. Qg4 {[%clk 0:03:01]}  Rg8 {[%clk 0:02:47]} 7. Bd3 {[%clk 0:03:01]}  g6 {[%clk 0:02:45]} 8. h4 {[%clk 0:02:59]}  h5 {[%clk 0:02:43]} 9. Qg3 {[%clk 0:02:54]}  Nc6 {[%clk 0:02:41]} 10. c3 {[%clk 0:02:53]}  d6 {[%clk 0:02:41]} 11. f4 {[%clk 0:02:46]}  dxe5 {[%clk 0:02:33]} 12. fxe5 {[%clk 0:02:47]}  Qd5 {[%clk 0:02:27]} 13. Nd2 {[%clk 0:02:39]}  Bd7 {[%clk 0:02:22]} 14. b4 {[%clk 0:02:32]}  Nxb4 {[%clk 0:01:56]} 15. Be4 {[%clk 0:02:30]}  Qa5 {[%clk 0:01:46]} 16. cxb4 {[%clk 0:02:29]}  Bxb4 {[%clk 0:01:47]} 17. Nf3 {[%clk 0:02:29]}  O-O-O {[%clk 0:01:42]} 18. Qf2 {[%clk 0:02:09]}  Bb5 {[%clk 0:01:39]} 19. Qe3 {[%clk 0:01:59]}  c5 {[%clk 0:01:29]} 20. dxc5 {[%clk 0:01:42]}  Rxd2 {[%clk 0:01:21]} 21. Nxd2 {[%clk 0:01:43]}  Rd8 {[%clk 0:01:19]} 22. Rd1 {[%clk 0:01:14]}  Ba4 {[%clk 0:01:19]} 23. O-O {[%clk 0:01:14]}  Bxd1 {[%clk 0:01:13]} 24. Nb3 {[%clk 0:00:33]}  Qxa2 {[%clk 0:00:54]} 25. Rxf7 {[%clk 0:00:14]}  Qxb3 {[%clk 0:00:47]} 26. Bxb7+ {[%clk 0:00:14]}  Kb8 {[%clk 0:00:45]} 27. Qg5 {[%clk 0:00:14]}  Bxc5+ {[%clk 0:00:39]} 28. Kh1 {[%clk 0:00:13]}  Bb6 {[%clk 0:00:33]} 29. Qe7 {[%clk 0:00:12]}  Bg4 {[%clk 0:00:21]} 30. Bf3 {[%clk 0:00:10]}  Qb1+ {[%clk 0:00:17]} 31. Kh2 {[%clk 0:00:10]}  Bg1+ {[%clk 0:00:14]} 32. Kg3 {[%clk 0:00:09]}  Qe1+ {[%clk 0:00:14]} 33. Kf4 {[%clk 0:00:09]}  Qe3+ {[%clk 0:00:15]} 34. Kg3 {[%clk 0:00:08]}  Qxe5+ {[%clk 0:00:15]} 35. Rf4 {[%clk 0:00:03]}  Bh2+ {[%clk 0:00:14]} 36. Kxh2 {[%clk 0:00:03]}  Qxf4+ {[%clk 0:00:14]} 37. Kg1 {[%clk 0:00:04]}  Qd4+ {[%clk 0:00:14]} 38. Kh1 {[%clk 0:00:03]}  Bxf3 {[%clk 0:00:14]} 39. gxf3 {[%clk 0:00:04]}  Qd5 {[%clk 0:00:10]} 40. Kg2 {[%clk 0:00:04]}  Rd7 {[%clk 0:00:11]} 41. Qf8+ {[%clk 0:00:04]}  Kc7 {[%clk 0:00:11]} 42. Qb4 {[%clk 0:00:04]}  Qc6 {[%clk 0:00:11]} 43. Qa5+ {[%clk 0:00:04]}  Kb7 {[%clk 0:00:11]} 44. Qb4+ {[%clk 0:00:04]}  Qb6 {[%clk 0:00:11]} 45. Qe4+ {[%clk 0:00:04]}  Rd5 {[%clk 0:00:11]} 46. Qxg6 {[%clk 0:00:04]}  Qd6 {[%clk 0:00:11]} 47. Qf7+ {[%clk 0:00:03]}  Kb6 {[%clk 0:00:11]} 48. Qe8 {[%clk 0:00:02]}  Rd2+ {[%clk 0:00:11]} 49. Kf1 {[%clk 0:00:02]}  Qd3+ {[%clk 0:00:11]} 50. Kg1 {[%clk 0:00:02]}  Qe3+ {[%clk 0:00:11]} 51. Kh1 {[%clk 0:00:02]}  Qe1# {[%clk 0:00:11]} 0-1


[Site "https://www.chess.com"]

[Event "Titled Tuesday Blitz February 28 Late 2023"]
[White "Dudzinski, Pawel"]
[Black "Chabris, Christopher"]
[WhiteFideId "1117890"]
[BlackFideId "2005263"]
[WhiteElo "2099"]
[BlackElo "2240"]
[Result "0-1"]
[Round "06"]
[TimeControl "180+2"]
[Date "2023.02.28"]
[WhiteClock "0:00:18"]
[BlackClock "0:00:10"]

1. e4 {[%clk 0:02:53]}  c5 {[%clk 0:02:59]} 2. Nc3 {[%clk 0:02:52]}  Nc6 {[%clk 0:02:59]} 3. g3 {[%clk 0:02:53]}  g6 {[%clk 0:02:58]} 4. Bg2 {[%clk 0:02:54]}  Bg7 {[%clk 0:02:58]} 5. d3 {[%clk 0:02:54]}  d6 {[%clk 0:02:56]} 6. Be3 {[%clk 0:02:55]}  Rb8 {[%clk 0:02:55]} 7. Qd2 {[%clk 0:02:55]}  b5 {[%clk 0:02:54]} 8. f4 {[%clk 0:02:54]}  b4 {[%clk 0:02:50]} 9. Nd1 {[%clk 0:02:55]}  e6 {[%clk 0:02:39]} 10. Ne2 {[%clk 0:02:55]}  Nge7 {[%clk 0:02:38]} 11. d4 {[%clk 0:02:56]}  Na5 {[%clk 0:02:31]} 12. dxc5 {[%clk 0:02:50]}  Nc4 {[%clk 0:02:28]} 13. Qc1 {[%clk 0:02:39]}  Nxe3 {[%clk 0:02:09]} 14. Qxe3 {[%clk 0:02:38]}  dxc5 {[%clk 0:02:04]} 15. Qxc5 {[%clk 0:02:37]}  Ba6 {[%clk 0:01:57]} 16. Qxa7 {[%clk 0:02:16]}  Qc8 {[%clk 0:01:42]} 17. Ne3 {[%clk 0:01:44]}  Bxb2 {[%clk 0:01:19]} 18. Rb1 {[%clk 0:01:42]}  Ra8 {[%clk 0:01:07]} 19. Qb6 {[%clk 0:01:34]}  Bc3+ {[%clk 0:01:06]} 20. Kf2 {[%clk 0:01:25]}  O-O {[%clk 0:00:55]} 21. Nxc3 {[%clk 0:01:19]}  Qxc3 {[%clk 0:00:53]} 22. Qxb4 {[%clk 0:01:19]}  Qc7 {[%clk 0:00:40]} 23. c4 {[%clk 0:01:18]}  Nc6 {[%clk 0:00:35]} 24. Qc3 {[%clk 0:01:18]}  g5 {[%clk 0:00:22]} 25. fxg5 {[%clk 0:01:16]}  Ne5 {[%clk 0:00:22]} 26. Rhc1 {[%clk 0:01:07]}  Rad8 {[%clk 0:00:21]} 27. Bf1 {[%clk 0:01:05]}  Bb7 {[%clk 0:00:19]} 28. Nd5 {[%clk 0:00:59]}  exd5 {[%clk 0:00:18]} 29. cxd5 {[%clk 0:01:00]}  Qd6 {[%clk 0:00:17]} 30. Rxb7 {[%clk 0:00:57]}  Rde8 {[%clk 0:00:16]} 31. Qc5 {[%clk 0:00:47]}  Qg6 {[%clk 0:00:14]} 32. Bg2 {[%clk 0:00:44]}  Qxg5 {[%clk 0:00:14]} 33. Rc3 {[%clk 0:00:40]}  Qd2+ {[%clk 0:00:13]} 34. Kg1 {[%clk 0:00:37]}  Rc8 {[%clk 0:00:11]} 35. Qxc8 {[%clk 0:00:35]}  Rxc8 {[%clk 0:00:11]} 36. Rxc8+ {[%clk 0:00:36]}  Kg7 {[%clk 0:00:12]} 37. h4 {[%clk 0:00:33]}  Ng4 {[%clk 0:00:10]} 38. Rb1 {[%clk 0:00:19]}  Qf2+ {[%clk 0:00:10]} 39. Kh1 {[%clk 0:00:20]}  Qxg3 {[%clk 0:00:10]} 40. Rc2 {[%clk 0:00:18]}  Qh2# {[%clk 0:00:10]} 0-1


[Site "https://www.chess.com"]

[Event "Titled Tuesday Blitz February 28 Late 2023"]
[White "olga-belka"]
[Black "Papayan, Oleg"]
[BlackFideId "4193911"]
[WhiteElo "2210"]
[BlackElo "2153"]
[Result "0-1"]
[Round "06"]
[TimeControl "180+2"]
[Date "2023.02.28"]
[WhiteClock "0:00:04"]
[BlackClock "0:00:03"]

1. e4 {[%clk 0:02:59]}  d5 {[%clk 0:03:00]} 2. exd5 {[%clk 0:02:57]}  Qxd5 {[%clk 0:03:01]} 3. Nc3 {[%clk 0:02:57]}  Qd8 {[%clk 0:03:02]} 4. d4 {[%clk 0:02:57]}  c6 {[%clk 0:03:02]} 5. Nf3 {[%clk 0:02:55]}  Bf5 {[%clk 0:03:03]} 6. Bc4 {[%clk 0:02:53]}  e6 {[%clk 0:03:03]} 7. O-O {[%clk 0:02:53]}  Nd7 {[%clk 0:03:03]} 8. Re1 {[%clk 0:02:52]}  Be7 {[%clk 0:03:04]} 9. Bf4 {[%clk 0:02:51]}  Ngf6 {[%clk 0:03:04]} 10. a4 {[%clk 0:02:46]}  a5 {[%clk 0:03:04]} 11. h3 {[%clk 0:02:42]}  h6 {[%clk 0:03:00]} 12. Ne5 {[%clk 0:02:36]}  O-O {[%clk 0:02:57]} 13. Qe2 {[%clk 0:02:33]}  Nb6 {[%clk 0:02:45]} 14. Bd3 {[%clk 0:02:26]}  Qxd4 {[%clk 0:02:13]} 15. Bxf5 {[%clk 0:02:12]}  Qxf4 {[%clk 0:02:13]} 16. Bxe6 {[%clk 0:02:06]}  fxe6 {[%clk 0:01:40]} 17. Ng6 {[%clk 0:02:04]}  Qd6 {[%clk 0:01:40]} 18. Nxf8 {[%clk 0:01:50]}  Bxf8 {[%clk 0:01:37]} 19. Qxe6+ {[%clk 0:01:49]}  Qxe6 {[%clk 0:01:38]} 20. Rxe6 {[%clk 0:01:49]}  Kf7 {[%clk 0:01:33]} 21. Re2 {[%clk 0:01:41]}  Bb4 {[%clk 0:01:21]} 22. Ne4 {[%clk 0:01:30]}  Rd8 {[%clk 0:01:16]} 23. c3 {[%clk 0:01:27]}  Be7 {[%clk 0:01:16]} 24. Nd2 {[%clk 0:01:18]}  Nfd5 {[%clk 0:01:04]} 25. g3 {[%clk 0:01:17]}  Bf6 {[%clk 0:00:49]} 26. Kg2 {[%clk 0:01:12]}  Ne7 {[%clk 0:00:31]} 27. f4 {[%clk 0:01:08]}  h5 {[%clk 0:00:27]} 28. g4 {[%clk 0:01:07]}  hxg4 {[%clk 0:00:23]} 29. hxg4 {[%clk 0:01:07]}  Ned5 {[%clk 0:00:19]} 30. Kf3 {[%clk 0:01:02]}  Rh8 {[%clk 0:00:19]} 31. Kg3 {[%clk 0:00:52]}  Be7 {[%clk 0:00:09]} 32. g5 {[%clk 0:00:40]}  Bd6 {[%clk 0:00:09]} 33. Rf1 {[%clk 0:00:35]}  Nxa4 {[%clk 0:00:05]} 34. Ne4 {[%clk 0:00:33]}  Bc7 {[%clk 0:00:04]} 35. Kg4 {[%clk 0:00:31]}  Nab6 {[%clk 0:00:02]} 36. f5 {[%clk 0:00:26]}  g6 {[%clk 0:00:02]} 37. Nc5 {[%clk 0:00:23]}  gxf5+ {[%clk 0:00:01]} 38. Rxf5+ {[%clk 0:00:23]}  Kg6 {[%clk 0:00:02]} 39. Re6+ {[%clk 0:00:22]}  Kg7 {[%clk 0:00:02]} 40. Re2 {[%clk 0:00:17]}  Bd6 {[%clk 0:00:01]} 41. Ne6+ {[%clk 0:00:16]}  Kg6 {[%clk 0:00:02]} 42. Rff2 {[%clk 0:00:10]}  Nd7 {[%clk 0:00:02]} 43. Nd4 {[%clk 0:00:09]}  Ne5+ {[%clk 0:00:02]} 44. Rxe5 {[%clk 0:00:06]}  Bxe5 {[%clk 0:00:03]} 45. Nf3 {[%clk 0:00:04]}  Ne3# {[%clk 0:00:03]} 0-1


[Site "https://www.chess.com"]

[Event "Titled Tuesday Blitz February 28 Late 2023"]
[White "Plotkin, Victor"]
[Black "Matsuura, Frederico"]
[WhiteFideId "2606674"]
[BlackFideId "2107848"]
[WhiteElo "2214"]
[BlackElo "2302"]
[Result "1-0"]
[Round "06"]
[TimeControl "180+2"]
[Date "2023.02.28"]
[WhiteClock "0:00:26"]
[BlackClock "0:00:06"]

1. e4 {[%clk 0:02:59]}  e6 {[%clk 0:03:00]} 2. d4 {[%clk 0:02:59]}  d5 {[%clk 0:03:01]} 3. exd5 {[%clk 0:02:59]}  exd5 {[%clk 0:03:01]} 4. Bd3 {[%clk 0:03:00]}  Nc6 {[%clk 0:03:00]} 5. Nf3 {[%clk 0:03:00]}  Bg4 {[%clk 0:02:59]} 6. c3 {[%clk 0:03:00]}  Bd6 {[%clk 0:02:59]} 7. O-O {[%clk 0:03:01]}  Qf6 {[%clk 0:02:59]} 8. Nbd2 {[%clk 0:02:49]}  O-O-O {[%clk 0:02:50]} 9. Qa4 {[%clk 0:02:34]}  Nge7 {[%clk 0:02:38]} 10. b4 {[%clk 0:02:34]}  Ng6 {[%clk 0:02:13]} 11. b5 {[%clk 0:02:30]}  Nb8 {[%clk 0:02:13]} 12. Qxa7 {[%clk 0:02:21]}  Nf4 {[%clk 0:02:13]} 13. Bc2 {[%clk 0:02:17]}  Rde8 {[%clk 0:01:57]} 14. Ba3 {[%clk 0:02:06]}  Re2 {[%clk 0:01:46]} 15. Bxd6 {[%clk 0:01:59]}  Qxd6 {[%clk 0:01:19]} 16. Bd1 {[%clk 0:01:49]}  Bxf3 {[%clk 0:00:45]} 17. Nxf3 {[%clk 0:01:40]}  Qg6 {[%clk 0:00:45]} 18. g3 {[%clk 0:01:17]}  Qg4 {[%clk 0:00:39]} 19. Ne5 {[%clk 0:00:55]}  Nh3+ {[%clk 0:00:15]} 20. Kg2 {[%clk 0:00:49]}  Nf4+ {[%clk 0:00:07]} 21. Kh1 {[%clk 0:00:47]}  Qh3 {[%clk 0:00:06]} 22. Rg1 {[%clk 0:00:27]}  Rxf2 {[%clk 0:00:06]} 23. Bg4+ {[%clk 0:00:26]} 1-0


[Site "https://www.chess.com"]

[Event "Titled Tuesday Blitz February 28 Late 2023"]
[White "Dahlgren, James Allen"]
[Black "Sokolin, Leonid"]
[WhiteFideId "22256873"]
[BlackFideId "2009161"]
[WhiteElo "2188"]
[BlackElo "2394"]
[Result "0-1"]
[Round "06"]
[TimeControl "180+2"]
[Date "2023.02.28"]
[WhiteClock "0:01:39"]
[BlackClock "0:01:32"]

1. Nf3 {[%clk 0:03:00]}  Nf6 {[%clk 0:02:58]} 2. g3 {[%clk 0:02:59]}  g6 {[%clk 0:02:56]} 3. Bg2 {[%clk 0:03:00]}  Bg7 {[%clk 0:02:56]} 4. d3 {[%clk 0:03:01]}  O-O {[%clk 0:02:56]} 5. e4 {[%clk 0:03:01]}  c5 {[%clk 0:02:47]} 6. O-O {[%clk 0:03:00]}  Nc6 {[%clk 0:02:47]} 7. c4 {[%clk 0:02:59]}  d6 {[%clk 0:02:45]} 8. Nc3 {[%clk 0:02:59]}  Bg4 {[%clk 0:02:44]} 9. h3 {[%clk 0:02:59]}  Bxf3 {[%clk 0:02:43]} 10. Bxf3 {[%clk 0:02:58]}  Nd7 {[%clk 0:02:43]} 11. Bg2 {[%clk 0:02:57]}  Rb8 {[%clk 0:02:41]} 12. f4 {[%clk 0:02:56]}  a6 {[%clk 0:02:41]} 13. Bd2 {[%clk 0:02:55]}  Nd4 {[%clk 0:02:35]} 14. a4 {[%clk 0:02:50]}  b5 {[%clk 0:02:32]} 15. axb5 {[%clk 0:02:50]}  axb5 {[%clk 0:02:32]} 16. cxb5 {[%clk 0:02:47]}  Nxb5 {[%clk 0:02:31]} 17. Qa4 {[%clk 0:02:42]}  Nd4 {[%clk 0:02:29]} 18. Rfb1 {[%clk 0:02:36]}  Nb3 {[%clk 0:02:27]} 19. Be3 {[%clk 0:02:19]}  Nxa1 {[%clk 0:02:26]} 20. Rxa1 {[%clk 0:02:19]}  Rxb2 {[%clk 0:02:25]} 21. Nd5 {[%clk 0:02:18]}  Nb6 {[%clk 0:02:19]} 22. Nxb6 {[%clk 0:02:13]}  Qxb6 {[%clk 0:02:16]} 23. Rd1 {[%clk 0:02:12]}  Qb3 {[%clk 0:02:12]} 24. Qxb3 {[%clk 0:02:10]}  Rxb3 {[%clk 0:02:12]} 25. Kf2 {[%clk 0:02:10]}  Rb2+ {[%clk 0:02:09]} 26. Rd2 {[%clk 0:02:10]}  Rfb8 {[%clk 0:02:06]} 27. Bf3 {[%clk 0:02:09]}  Rxd2+ {[%clk 0:02:02]} 28. Bxd2 {[%clk 0:02:10]}  Rb2 {[%clk 0:02:02]} 29. Ke1 {[%clk 0:02:06]}  Bd4 {[%clk 0:02:01]} 30. Bd1 {[%clk 0:02:04]}  Bf2+ {[%clk 0:01:57]} 31. Kxf2 {[%clk 0:02:01]}  Rxd2+ {[%clk 0:01:56]} 32. Be2 {[%clk 0:02:01]}  f6 {[%clk 0:01:48]} 33. Ke3 {[%clk 0:02:00]}  Rb2 {[%clk 0:01:45]} 34. Bd1 {[%clk 0:01:57]}  e5 {[%clk 0:01:45]} 35. fxe5 {[%clk 0:01:54]}  dxe5 {[%clk 0:01:43]} 36. h4 {[%clk 0:01:51]}  Kg7 {[%clk 0:01:38]} 37. Bg4 {[%clk 0:01:48]}  h5 {[%clk 0:01:36]} 38. Be6 {[%clk 0:01:47]}  g5 {[%clk 0:01:34]} 39. hxg5 {[%clk 0:01:45]}  fxg5 {[%clk 0:01:34]} 40. Kf3 {[%clk 0:01:41]}  g4+ {[%clk 0:01:32]} 41. Ke3 {[%clk 0:01:39]}  Rg2 {[%clk 0:01:32]} 0-1


[Site "https://www.chess.com"]

[Event "Titled Tuesday Blitz February 28 Late 2023"]
[White "Buchenau, Frank"]
[Black "Marcolino, Daniel Mattos"]
[WhiteFideId "4604350"]
[BlackFideId "2106841"]
[WhiteElo "2157"]
[BlackElo "2127"]
[Result "1-0"]
[Round "06"]
[TimeControl "180+2"]
[Date "2023.02.28"]
[WhiteClock "0:01:48"]
[BlackClock "0:01:13"]

1. e4 {[%clk 0:03:00]}  c6 {[%clk 0:02:59]} 2. Nf3 {[%clk 0:02:59]}  d5 {[%clk 0:03:00]} 3. Nc3 {[%clk 0:02:59]}  Bg4 {[%clk 0:03:00]} 4. h3 {[%clk 0:02:57]}  Bxf3 {[%clk 0:03:00]} 5. Qxf3 {[%clk 0:02:57]}  Nf6 {[%clk 0:03:00]} 6. d3 {[%clk 0:02:54]}  e6 {[%clk 0:02:58]} 7. Bd2 {[%clk 0:02:53]}  Bb4 {[%clk 0:02:58]} 8. a3 {[%clk 0:02:51]}  Bxc3 {[%clk 0:02:54]} 9. Bxc3 {[%clk 0:02:51]}  d4 {[%clk 0:02:55]} 10. Bd2 {[%clk 0:02:50]}  c5 {[%clk 0:02:55]} 11. g4 {[%clk 0:02:49]}  Nc6 {[%clk 0:02:55]} 12. g5 {[%clk 0:02:48]}  Nd7 {[%clk 0:02:51]} 13. h4 {[%clk 0:02:47]}  Nde5 {[%clk 0:02:50]} 14. Qg3 {[%clk 0:02:47]}  Qe7 {[%clk 0:02:36]} 15. f4 {[%clk 0:02:45]}  Nd7 {[%clk 0:02:31]} 16. O-O-O {[%clk 0:02:41]}  O-O-O {[%clk 0:02:27]} 17. h5 {[%clk 0:02:41]}  e5 {[%clk 0:02:26]} 18. f5 {[%clk 0:02:34]}  f6 {[%clk 0:02:25]} 19. h6 {[%clk 0:02:33]}  Kb8 {[%clk 0:01:50]} 20. Be2 {[%clk 0:02:22]}  Rdg8 {[%clk 0:01:49]} 21. Rdg1 {[%clk 0:02:19]}  b5 {[%clk 0:01:40]} 22. g6 {[%clk 0:02:13]}  hxg6 {[%clk 0:01:31]} 23. h7 {[%clk 0:02:04]}  Rc8 {[%clk 0:01:24]} 24. Qxg6 {[%clk 0:02:02]}  Nf8 {[%clk 0:01:15]} 25. Qxg7 {[%clk 0:02:01]}  Qxg7 {[%clk 0:01:12]} 26. Rxg7 {[%clk 0:02:00]}  Rc7 {[%clk 0:01:13]} 27. Rg8 {[%clk 0:01:48]} 1-0


[Site "https://www.chess.com"]

[Event "Titled Tuesday Blitz February 28 Late 2023"]
[White "Fernandez Garcia, Gumersindo"]
[Black "Urbina Perez, Juan Antonio"]
[WhiteFideId "24516740"]
[BlackFideId "2217368"]
[WhiteElo "2093"]
[BlackElo "2197"]
[Result "0-1"]
[Round "06"]
[TimeControl "180+2"]
[Date "2023.02.28"]
[WhiteClock "0:00:16"]
[BlackClock "0:00:16"]

1. e4 {[%clk 0:03:00]}  e6 {[%clk 0:02:55]} 2. d4 {[%clk 0:03:00]}  d5 {[%clk 0:02:55]} 3. Bd3 {[%clk 0:02:59]}  dxe4 {[%clk 0:02:55]} 4. Bxe4 {[%clk 0:03:00]}  Nf6 {[%clk 0:02:55]} 5. Bf3 {[%clk 0:03:00]}  Bd6 {[%clk 0:02:56]} 6. Ne2 {[%clk 0:03:00]}  c6 {[%clk 0:02:56]} 7. c4 {[%clk 0:02:59]}  O-O {[%clk 0:02:53]} 8. Nbc3 {[%clk 0:02:59]}  Nbd7 {[%clk 0:02:53]} 9. O-O {[%clk 0:02:59]}  e5 {[%clk 0:02:53]} 10. Bg5 {[%clk 0:02:49]}  h6 {[%clk 0:02:49]} 11. Bh4 {[%clk 0:02:46]}  Qc7 {[%clk 0:02:45]} 12. Bg3 {[%clk 0:02:43]}  exd4 {[%clk 0:02:42]} 13. Qxd4 {[%clk 0:02:39]}  Bxg3 {[%clk 0:02:38]} 14. Nxg3 {[%clk 0:02:38]}  Nb6 {[%clk 0:02:25]} 15. Rad1 {[%clk 0:02:33]}  Be6 {[%clk 0:02:23]} 16. b3 {[%clk 0:02:31]}  Rad8 {[%clk 0:02:21]} 17. Qh4 {[%clk 0:02:28]}  Rxd1 {[%clk 0:02:16]} 18. Rxd1 {[%clk 0:02:26]}  Rd8 {[%clk 0:02:17]} 19. Nge4 {[%clk 0:02:20]}  Rxd1+ {[%clk 0:02:07]} 20. Bxd1 {[%clk 0:02:19]}  Nbd7 {[%clk 0:02:02]} 21. h3 {[%clk 0:02:12]}  Qe5 {[%clk 0:01:59]} 22. Qg3 {[%clk 0:02:00]}  Qd4 {[%clk 0:01:46]} 23. Nxf6+ {[%clk 0:01:47]}  Nxf6 {[%clk 0:01:47]} 24. Qe3 {[%clk 0:01:30]}  Qxe3 {[%clk 0:01:44]} 25. fxe3 {[%clk 0:01:31]}  Bf5 {[%clk 0:01:44]} 26. Bf3 {[%clk 0:01:28]}  Kf8 {[%clk 0:01:42]} 27. Kf2 {[%clk 0:01:28]}  Ke7 {[%clk 0:01:42]} 28. e4 {[%clk 0:01:28]}  Be6 {[%clk 0:01:41]} 29. Ke3 {[%clk 0:01:26]}  Nd7 {[%clk 0:01:41]} 30. Ne2 {[%clk 0:01:19]}  Ne5 {[%clk 0:01:38]} 31. Nd4 {[%clk 0:01:18]}  g5 {[%clk 0:01:27]} 32. Be2 {[%clk 0:01:14]}  c5 {[%clk 0:01:22]} 33. Nb5 {[%clk 0:01:08]}  a6 {[%clk 0:01:17]} 34. Nc7 {[%clk 0:01:07]}  Kd6 {[%clk 0:01:14]} 35. Nd5 {[%clk 0:01:07]}  Bxd5 {[%clk 0:00:45]} 36. exd5 {[%clk 0:01:08]}  f5 {[%clk 0:00:42]} 37. g3 {[%clk 0:01:07]}  Nf7 {[%clk 0:00:39]} 38. Bh5 {[%clk 0:01:05]}  Ne5 {[%clk 0:00:37]} 39. Be2 {[%clk 0:01:03]}  Ke7 {[%clk 0:00:33]} 40. h4 {[%clk 0:00:57]}  Nf7 {[%clk 0:00:32]} 41. hxg5 {[%clk 0:00:57]}  hxg5 {[%clk 0:00:33]} 42. Bh5 {[%clk 0:00:56]}  Nd6 {[%clk 0:00:32]} 43. Be2 {[%clk 0:00:53]}  Kf6 {[%clk 0:00:32]} 44. Bd3 {[%clk 0:00:53]}  Ke5 {[%clk 0:00:32]} 45. Bb1 {[%clk 0:00:53]}  b5 {[%clk 0:00:31]} 46. Bd3 {[%clk 0:00:48]}  bxc4 {[%clk 0:00:30]} 47. Bxc4 {[%clk 0:00:41]}  a5 {[%clk 0:00:30]} 48. Kf3 {[%clk 0:00:37]}  Ne4 {[%clk 0:00:27]} 49. Kg2 {[%clk 0:00:26]}  Nf6 {[%clk 0:00:25]} 50. Kf3 {[%clk 0:00:18]}  Nxd5 {[%clk 0:00:25]} 51. Bd3 {[%clk 0:00:17]}  Nc3 {[%clk 0:00:22]} 52. a3 {[%clk 0:00:17]}  Nd5 {[%clk 0:00:19]} 53. Bc4 {[%clk 0:00:16]}  g4+ {[%clk 0:00:18]} 54. Kf2 {[%clk 0:00:15]}  Nf6 {[%clk 0:00:18]} 55. Bd3 {[%clk 0:00:15]}  Ne4+ {[%clk 0:00:18]} 56. Kg2 {[%clk 0:00:16]}  Kd4 {[%clk 0:00:18]} 57. Bb1 {[%clk 0:00:16]}  Kc3 {[%clk 0:00:16]} 0-1


[Site "https://www.chess.com"]